[Event "Titled Tuesday Blitz May 16 Early 2023"]
[White "Ansh M Shah"]
[Black "Hirneise, Jens"]
[WhiteFideId "25033379"]
[BlackFideId "24614734"]
[WhiteElo "2084"]
[BlackElo "2345"]
[Result "1-0"]
[Round "07"]
[TimeControl "180+2"]
[Date "2023.05.16"]
[WhiteClock "0:01:17"]
[BlackClock "0:01:03"]

1. d4 {[%clk 0:03:00]}  Nf6 {[%clk 0:02:59]} 2. c4 {[%clk 0:02:58]}  e6 {[%clk 0:02:54]} 3. g3 {[%clk 0:02:55]}  Bb4+ {[%clk 0:02:52]} 4. Nd2 {[%clk 0:02:55]}  O-O {[%clk 0:02:50]} 5. Bg2 {[%clk 0:02:55]}  Re8 {[%clk 0:02:50]} 6. Nf3 {[%clk 0:02:56]}  Bf8 {[%clk 0:02:49]} 7. O-O {[%clk 0:02:56]}  d6 {[%clk 0:02:49]} 8. b3 {[%clk 0:02:56]}  e5 {[%clk 0:02:49]} 9. dxe5 {[%clk 0:02:56]}  dxe5 {[%clk 0:02:49]} 10. Bb2 {[%clk 0:02:56]}  Nc6 {[%clk 0:02:45]} 11. Ng5 {[%clk 0:02:53]}  Bf5 {[%clk 0:02:41]} 12. Nge4 {[%clk 0:02:52]}  Be7 {[%clk 0:02:36]} 13. Nxf6+ {[%clk 0:02:50]}  Bxf6 {[%clk 0:02:36]} 14. Ne4 {[%clk 0:02:51]}  Bxe4 {[%clk 0:02:30]} 15. Bxe4 {[%clk 0:02:52]}  Qc8 {[%clk 0:02:25]} 16. e3 {[%clk 0:02:47]}  Nd8 {[%clk 0:02:21]} 17. Qc2 {[%clk 0:02:45]}  h5 {[%clk 0:02:17]} 18. Bh7+ {[%clk 0:02:34]}  Kh8 {[%clk 0:02:14]} 19. Bf5 {[%clk 0:02:35]}  Ne6 {[%clk 0:02:15]} 20. Rad1 {[%clk 0:02:33]}  a5 {[%clk 0:02:09]} 21. a3 {[%clk 0:02:31]}  c6 {[%clk 0:02:05]} 22. Bc3 {[%clk 0:02:09]}  Qc7 {[%clk 0:02:01]} 23. Rd2 {[%clk 0:02:01]}  g6 {[%clk 0:01:47]} 24. Bxe6 {[%clk 0:01:44]}  Rxe6 {[%clk 0:01:47]} 25. Rfd1 {[%clk 0:01:45]}  Rd8 {[%clk 0:01:41]} 26. Rxd8+ {[%clk 0:01:39]}  Bxd8 {[%clk 0:01:42]} 27. Qd2 {[%clk 0:01:33]}  Bf6 {[%clk 0:01:40]} 28. Bxa5 {[%clk 0:01:31]}  b6 {[%clk 0:01:40]} 29. Bc3 {[%clk 0:01:29]}  Kg7 {[%clk 0:01:38]} 30. Qd7 {[%clk 0:01:26]}  Re7 {[%clk 0:01:37]} 31. Qxc7 {[%clk 0:01:25]}  Rxc7 {[%clk 0:01:38]} 32. Rd6 {[%clk 0:01:24]}  Be7 {[%clk 0:01:23]} 33. Bxe5+ {[%clk 0:01:19]}  f6 {[%clk 0:01:20]} 34. Rxf6 {[%clk 0:01:17]}  Bxf6 {[%clk 0:01:14]} 35. Bxc7 {[%clk 0:01:17]}  b5 {[%clk 0:01:10]} 36. cxb5 {[%clk 0:01:16]}  cxb5 {[%clk 0:01:11]} 37. a4 {[%clk 0:01:16]}  bxa4 {[%clk 0:01:11]} 38. bxa4 {[%clk 0:01:17]}  Kf7 {[%clk 0:01:08]} 39. a5 {[%clk 0:01:17]}  Ke8 {[%clk 0:01:07]} 40. a6 {[%clk 0:01:17]}  Kd7 {[%clk 0:01:07]} 41. a7 {[%clk 0:01:17]}  Kxc7 {[%clk 0:01:03]} 42. a8=Q {[%clk 0:01:17]} 1-0


[Site "https://www.chess.com"]

[Event "Titled Tuesday Blitz May 16 Early 2023"]
[White "Smith, Shreyas"]
[Black "Baches Garcia, Guillermo"]
[WhiteFideId "7400713"]
[BlackFideId "2209764"]
[WhiteElo "2151"]
[BlackElo "2483"]
[Result "0-1"]
[Round "07"]
[TimeControl "180+2"]
[Date "2023.05.16"]
[WhiteClock "0:00:52"]
[BlackClock "0:01:20"]

1. e4 {[%clk 0:03:00]}  d5 {[%clk 0:03:00]} 2. exd5 {[%clk 0:03:00]}  Qxd5 {[%clk 0:03:00]} 3. Nc3 {[%clk 0:03:00]}  Qa5 {[%clk 0:03:01]} 4. d4 {[%clk 0:03:00]}  c6 {[%clk 0:03:01]} 5. Nf3 {[%clk 0:03:00]}  Nf6 {[%clk 0:03:01]} 6. Bc4 {[%clk 0:03:00]}  Bf5 {[%clk 0:03:01]} 7. Bd2 {[%clk 0:02:58]}  e6 {[%clk 0:03:01]} 8. Nd5 {[%clk 0:02:57]}  Qd8 {[%clk 0:03:01]} 9. Nxf6+ {[%clk 0:02:57]}  gxf6 {[%clk 0:03:02]} 10. Qe2 {[%clk 0:02:56]}  Nd7 {[%clk 0:02:58]} 11. O-O-O {[%clk 0:02:47]}  Qc7 {[%clk 0:02:56]} 12. Nh4 {[%clk 0:02:45]}  Bg6 {[%clk 0:02:56]} 13. f4 {[%clk 0:02:35]}  O-O-O {[%clk 0:02:52]} 14. f5 {[%clk 0:02:31]}  exf5 {[%clk 0:02:40]} 15. Qf3 {[%clk 0:02:16]}  Nb6 {[%clk 0:02:28]} 16. Bf4 {[%clk 0:02:16]}  Bd6 {[%clk 0:02:10]} 17. Bxd6 {[%clk 0:02:11]}  Rxd6 {[%clk 0:02:10]} 18. Bd3 {[%clk 0:02:01]}  Rhd8 {[%clk 0:02:09]} 19. Bxf5+ {[%clk 0:01:57]}  Kb8 {[%clk 0:02:09]} 20. c3 {[%clk 0:01:56]}  c5 {[%clk 0:02:02]} 21. dxc5 {[%clk 0:01:22]}  Qxc5 {[%clk 0:01:54]} 22. Qg3 {[%clk 0:01:03]}  Ka8 {[%clk 0:01:33]} 23. Bg4 {[%clk 0:00:52]}  Qg5+ {[%clk 0:01:20]} 0-1


[Site "https://www.chess.com"]

[Event "Titled Tuesday Blitz May 16 Early 2023"]
[White "Toncheva, Nadya"]
[Black "I_KID_you_not"]
[WhiteFideId "2924056"]
[WhiteElo "2101"]
[BlackElo "2327"]
[Result "1-0"]
[Round "07"]
[TimeControl "180+2"]
[Date "2023.05.16"]
[WhiteClock "0:01:19"]
[BlackClock "0:00:52"]

1. d4 {[%clk 0:03:00]}  Nf6 {[%clk 0:02:59]} 2. c4 {[%clk 0:02:59]}  g6 {[%clk 0:03:00]} 3. Nc3 {[%clk 0:02:59]}  Bg7 {[%clk 0:03:00]} 4. e4 {[%clk 0:02:59]}  d6 {[%clk 0:03:00]} 5. Be2 {[%clk 0:02:59]}  O-O {[%clk 0:02:59]} 6. Bg5 {[%clk 0:03:00]}  c5 {[%clk 0:02:57]} 7. d5 {[%clk 0:02:59]}  e6 {[%clk 0:02:56]} 8. Qd2 {[%clk 0:02:57]}  exd5 {[%clk 0:02:56]} 9. exd5 {[%clk 0:02:58]}  Qb6 {[%clk 0:02:49]} 10. Nf3 {[%clk 0:02:52]}  Bf5 {[%clk 0:02:43]} 11. O-O {[%clk 0:02:52]}  Ne4 {[%clk 0:02:34]} 12. Nxe4 {[%clk 0:02:51]}  Bxe4 {[%clk 0:02:35]} 13. b3 {[%clk 0:02:35]}  Nd7 {[%clk 0:02:28]} 14. Rae1 {[%clk 0:02:30]}  Rfe8 {[%clk 0:02:17]} 15. Bd1 {[%clk 0:02:27]}  Qb4 {[%clk 0:02:12]} 16. Qxb4 {[%clk 0:02:25]}  cxb4 {[%clk 0:02:12]} 17. Bd2 {[%clk 0:02:21]}  Bd3 {[%clk 0:02:06]} 18. Rxe8+ {[%clk 0:02:21]}  Rxe8 {[%clk 0:02:05]} 19. Re1 {[%clk 0:02:22]}  Rxe1+ {[%clk 0:02:05]} 20. Nxe1 {[%clk 0:02:19]}  Bb1 {[%clk 0:02:04]} 21. Bxb4 {[%clk 0:02:18]}  Nc5 {[%clk 0:01:58]} 22. Bxc5 {[%clk 0:02:12]}  dxc5 {[%clk 0:01:58]} 23. a3 {[%clk 0:01:53]}  Bb2 {[%clk 0:01:52]} 24. Bc2 {[%clk 0:01:54]}  Ba2 {[%clk 0:01:39]} 25. a4 {[%clk 0:01:51]}  Kf8 {[%clk 0:01:35]} 26. Nd3 {[%clk 0:01:51]}  Ba3 {[%clk 0:01:30]} 27. Kf1 {[%clk 0:01:50]}  Ke7 {[%clk 0:01:29]} 28. Ke2 {[%clk 0:01:50]}  a6 {[%clk 0:01:29]} 29. Kd2 {[%clk 0:01:49]}  b5 {[%clk 0:01:25]} 30. cxb5 {[%clk 0:01:38]}  axb5 {[%clk 0:01:25]} 31. a5 {[%clk 0:01:37]}  c4 {[%clk 0:01:23]} 32. a6 {[%clk 0:01:24]}  cxb3 {[%clk 0:01:01]} 33. a7 {[%clk 0:01:19]}  Bc1+ {[%clk 0:00:52]} 1-0


[Site "https://www.chess.com"]

[Event "Titled Tuesday Blitz May 16 Early 2023"]
[White "Korpics, Zsolt"]
[Black "Hajiyev, Kanan"]
[WhiteFideId "705241"]
[BlackFideId "13404148"]
[WhiteElo "2336"]
[BlackElo "2103"]
[Result "1-0"]
[Round "07"]
[TimeControl "180+2"]
[Date "2023.05.16"]
[WhiteClock "0:00:05"]
[BlackClock "0:00:02"]

1. e4 {[%clk 0:03:00]}  e5 {[%clk 0:02:53]} 2. Nf3 {[%clk 0:03:00]}  Nc6 {[%clk 0:02:52]} 3. d4 {[%clk 0:02:57]}  exd4 {[%clk 0:02:52]} 4. Bb5 {[%clk 0:02:58]}  Bc5 {[%clk 0:02:45]} 5. O-O {[%clk 0:02:57]}  d6 {[%clk 0:02:40]} 6. Nxd4 {[%clk 0:02:41]}  Bd7 {[%clk 0:02:35]} 7. Nxc6 {[%clk 0:02:39]}  bxc6 {[%clk 0:02:31]} 8. Bc4 {[%clk 0:02:39]}  Nf6 {[%clk 0:02:29]} 9. Nc3 {[%clk 0:02:36]}  O-O {[%clk 0:02:18]} 10. h3 {[%clk 0:02:35]}  h6 {[%clk 0:02:10]} 11. Kh1 {[%clk 0:02:30]}  Re8 {[%clk 0:01:57]} 12. Bd3 {[%clk 0:01:29]}  Bb4 {[%clk 0:01:54]} 13. Qf3 {[%clk 0:01:24]}  Qe7 {[%clk 0:01:49]} 14. Re1 {[%clk 0:01:15]}  Qe5 {[%clk 0:01:47]} 15. Bf4 {[%clk 0:01:13]}  Qh5 {[%clk 0:01:44]} 16. Qg3 {[%clk 0:01:07]}  Rab8 {[%clk 0:01:24]} 17. a3 {[%clk 0:01:03]}  Bc5 {[%clk 0:01:21]} 18. Rab1 {[%clk 0:00:53]}  Bd4 {[%clk 0:01:19]} 19. Nd1 {[%clk 0:00:41]}  Qg6 {[%clk 0:01:04]} 20. Qxg6 {[%clk 0:00:37]}  fxg6 {[%clk 0:01:05]} 21. c3 {[%clk 0:00:35]}  Be5 {[%clk 0:01:04]} 22. Be3 {[%clk 0:00:23]}  g5 {[%clk 0:01:02]} 23. b4 {[%clk 0:00:18]}  c5 {[%clk 0:00:57]} 24. bxc5 {[%clk 0:00:15]}  Rxb1 {[%clk 0:00:56]} 25. Bxb1 {[%clk 0:00:16]}  dxc5 {[%clk 0:00:48]} 26. Bxc5 {[%clk 0:00:16]}  a5 {[%clk 0:00:48]} 27. Bd4 {[%clk 0:00:15]}  Bc6 {[%clk 0:00:42]} 28. f3 {[%clk 0:00:15]}  Nd7 {[%clk 0:00:41]} 29. Nb2 {[%clk 0:00:14]}  Nb6 {[%clk 0:00:40]} 30. Nd3 {[%clk 0:00:14]}  Bd6 {[%clk 0:00:40]} 31. e5 {[%clk 0:00:11]}  Bxa3 {[%clk 0:00:39]} 32. Bc2 {[%clk 0:00:12]}  a4 {[%clk 0:00:39]} 33. Ra1 {[%clk 0:00:11]}  Bb2 {[%clk 0:00:37]} 34. Nxb2 {[%clk 0:00:11]}  Nd5 {[%clk 0:00:33]} 35. Bxa4 {[%clk 0:00:10]}  Ra8 {[%clk 0:00:32]} 36. Ra2 {[%clk 0:00:07]}  Kf8 {[%clk 0:00:26]} 37. Bb3 {[%clk 0:00:06]}  Rb8 {[%clk 0:00:26]} 38. Bc4 {[%clk 0:00:04]}  Nf4 {[%clk 0:00:25]} 39. Bc5+ {[%clk 0:00:04]}  Ke8 {[%clk 0:00:25]} 40. g3 {[%clk 0:00:03]}  Bxf3+ {[%clk 0:00:23]} 41. Kh2 {[%clk 0:00:03]}  Nd5 {[%clk 0:00:23]} 42. Nd3 {[%clk 0:00:02]}  Nxc3 {[%clk 0:00:22]} 43. Rf2 {[%clk 0:00:02]}  Bd5 {[%clk 0:00:20]} 44. Rf8+ {[%clk 0:00:02]}  Kd7 {[%clk 0:00:20]} 45. Rxb8 {[%clk 0:00:02]}  Bxc4 {[%clk 0:00:21]} 46. Nb4 {[%clk 0:00:03]}  Ne4 {[%clk 0:00:20]} 47. Rg8 {[%clk 0:00:03]}  Nxc5 {[%clk 0:00:20]} 48. Rxg7+ {[%clk 0:00:04]}  Ke6 {[%clk 0:00:20]} 49. Rxc7 {[%clk 0:00:03]}  Kxe5 {[%clk 0:00:16]} 50. Rxc5+ {[%clk 0:00:04]}  Kd4 {[%clk 0:00:16]} 51. Rc8 {[%clk 0:00:03]}  Be2 {[%clk 0:00:16]} 52. Nc6+ {[%clk 0:00:03]}  Kd5 {[%clk 0:00:16]} 53. Ne7+ {[%clk 0:00:04]}  Ke6 {[%clk 0:00:17]} 54. Nc6 {[%clk 0:00:04]}  Kd7 {[%clk 0:00:17]} 55. Na7 {[%clk 0:00:04]}  Ba6 {[%clk 0:00:16]} 56. Rc2 {[%clk 0:00:04]}  Ke6 {[%clk 0:00:14]} 57. Rc1 {[%clk 0:00:05]}  Kf5 {[%clk 0:00:14]} 58. Kg1 {[%clk 0:00:05]}  h5 {[%clk 0:00:15]} 59. Kf2 {[%clk 0:00:06]}  h4 {[%clk 0:00:15]} 60. gxh4 {[%clk 0:00:06]}  gxh4 {[%clk 0:00:16]} 61. Nc6 {[%clk 0:00:05]}  Kf6 {[%clk 0:00:16]} 62. Nd4 {[%clk 0:00:05]}  Bd3 {[%clk 0:00:16]} 63. Nf3 {[%clk 0:00:05]}  Be4 {[%clk 0:00:14]} 64. Ke3 {[%clk 0:00:06]}  Bf5 {[%clk 0:00:13]} 65. Kf4 {[%clk 0:00:06]}  Bxh3 {[%clk 0:00:13]} 66. Nxh4 {[%clk 0:00:06]}  Be6 {[%clk 0:00:13]} 67. Nf3 {[%clk 0:00:06]}  Ke7 {[%clk 0:00:13]} 68. Rc3 {[%clk 0:00:06]}  Kd6 {[%clk 0:00:13]} 69. Rd3+ {[%clk 0:00:06]}  Bd5 {[%clk 0:00:14]} 70. Ne5 {[%clk 0:00:05]}  Kc5 {[%clk 0:00:14]} 71. Rd1 {[%clk 0:00:05]}  Bb7 {[%clk 0:00:13]} 72. Rc1+ {[%clk 0:00:05]}  Kd4 {[%clk 0:00:12]} 73. Nf3+ {[%clk 0:00:05]}  Kd3 {[%clk 0:00:10]} 74. Rd1+ {[%clk 0:00:05]}  Ke2 {[%clk 0:00:10]} 75. Rd2+ {[%clk 0:00:06]}  Kf1 {[%clk 0:00:08]} 76. Ke3 {[%clk 0:00:05]}  Ba6 {[%clk 0:00:02]} 77. Rf2# {[%clk 0:00:05]} 1-0


[Site "https://www.chess.com"]

[Event "Titled Tuesday Blitz May 16 Early 2023"]
[White "Ginzburg, Yakov"]
[Black "Onslow, Alfie"]
[WhiteFideId "4157176"]
[BlackFideId "436976"]
[WhiteElo "2305"]
[BlackElo "2114"]
[Result "1-0"]
[Round "07"]
[TimeControl "180+2"]
[Date "2023.05.16"]
[WhiteClock "0:01:04"]
[BlackClock "0:00:06"]

1. d4 {[%clk 0:02:59]}  Nf6 {[%clk 0:02:58]} 2. c4 {[%clk 0:02:59]}  c5 {[%clk 0:02:58]} 3. d5 {[%clk 0:02:59]}  b5 {[%clk 0:02:58]} 4. cxb5 {[%clk 0:02:58]}  a6 {[%clk 0:02:58]} 5. b6 {[%clk 0:02:58]}  g6 {[%clk 0:02:56]} 6. Nc3 {[%clk 0:02:57]}  d6 {[%clk 0:02:53]} 7. e4 {[%clk 0:02:57]}  Bg7 {[%clk 0:02:53]} 8. Nf3 {[%clk 0:02:56]}  O-O {[%clk 0:02:52]} 9. Be2 {[%clk 0:02:56]}  Nbd7 {[%clk 0:02:48]} 10. a4 {[%clk 0:02:52]}  a5 {[%clk 0:02:40]} 11. O-O {[%clk 0:02:51]}  Ba6 {[%clk 0:02:39]} 12. Bb5 {[%clk 0:02:50]}  Qxb6 {[%clk 0:02:31]} 13. Re1 {[%clk 0:02:49]}  Bxb5 {[%clk 0:02:30]} 14. Nxb5 {[%clk 0:02:46]}  Ne8 {[%clk 0:02:29]} 15. Nd2 {[%clk 0:02:44]}  Nc7 {[%clk 0:02:25]} 16. Nc4 {[%clk 0:02:44]}  Qb7 {[%clk 0:02:26]} 17. Nxc7 {[%clk 0:02:42]}  Qxc7 {[%clk 0:02:24]} 18. Bd2 {[%clk 0:02:26]}  Rfb8 {[%clk 0:02:19]} 19. Rb1 {[%clk 0:02:20]}  Ne5 {[%clk 0:01:40]} 20. Nxe5 {[%clk 0:02:02]}  Bxe5 {[%clk 0:01:38]} 21. Bc3 {[%clk 0:02:00]}  Bxc3 {[%clk 0:01:22]} 22. bxc3 {[%clk 0:02:01]}  Rxb1 {[%clk 0:01:22]} 23. Qxb1 {[%clk 0:02:01]}  Rb8 {[%clk 0:01:23]} 24. Qc1 {[%clk 0:01:57]}  Rb3 {[%clk 0:01:17]} 25. h4 {[%clk 0:01:56]}  Qd7 {[%clk 0:00:58]} 26. Qg5 {[%clk 0:01:36]}  h5 {[%clk 0:00:20]} 27. e5 {[%clk 0:01:32]}  dxe5 {[%clk 0:00:16]} 28. Rxe5 {[%clk 0:01:31]}  Qg4 {[%clk 0:00:10]} 29. Rxe7 {[%clk 0:01:12]}  Rb1+ {[%clk 0:00:08]} 30. Kh2 {[%clk 0:01:12]}  Qxg5 {[%clk 0:00:07]} 31. hxg5 {[%clk 0:01:13]}  Rc1 {[%clk 0:00:06]} 32. d6 {[%clk 0:01:11]}  Kf8 {[%clk 0:00:07]} 33. Re5 {[%clk 0:01:06]}  Rxc3 {[%clk 0:00:05]} 34. d7 {[%clk 0:01:07]}  Rd3 {[%clk 0:00:05]} 35. Re8+ {[%clk 0:01:06]}  Kg7 {[%clk 0:00:06]} 36. d8=Q {[%clk 0:01:04]}  Rxd8 {[%clk 0:00:06]} 1-0


[Site "https://www.chess.com"]

[Event "Titled Tuesday Blitz May 16 Early 2023"]
[White "Seinw1"]
[Black "Mike24147"]
[WhiteElo "2543"]
[BlackElo "2333"]
[Result "1-0"]
[Round "07"]
[TimeControl "180+2"]
[Date "2023.05.16"]
[WhiteClock "0:00:56"]
[BlackClock "0:00:57"]

1. e4 {[%clk 0:03:00]}  c5 {[%clk 0:02:59]} 2. Nf3 {[%clk 0:03:00]}  e6 {[%clk 0:02:57]} 3. d3 {[%clk 0:02:57]}  Nc6 {[%clk 0:02:56]} 4. g3 {[%clk 0:02:57]}  g6 {[%clk 0:02:56]} 5. Bg2 {[%clk 0:02:57]}  Bg7 {[%clk 0:02:57]} 6. O-O {[%clk 0:02:57]}  Nge7 {[%clk 0:02:58]} 7. c3 {[%clk 0:02:57]}  O-O {[%clk 0:02:58]} 8. Be3 {[%clk 0:02:57]}  d6 {[%clk 0:02:53]} 9. Na3 {[%clk 0:02:52]}  Rb8 {[%clk 0:02:52]} 10. d4 {[%clk 0:02:50]}  Qa5 {[%clk 0:02:44]} 11. Nc4 {[%clk 0:02:48]}  Qa6 {[%clk 0:02:08]} 12. Nxd6 {[%clk 0:02:46]}  Nxd4 {[%clk 0:02:04]} 13. cxd4 {[%clk 0:02:17]}  Qxd6 {[%clk 0:02:04]} 14. Bf4 {[%clk 0:01:52]}  e5 {[%clk 0:01:57]} 15. Nxe5 {[%clk 0:01:49]}  Qxd4 {[%clk 0:01:35]} 16. Qxd4 {[%clk 0:01:49]}  cxd4 {[%clk 0:01:35]} 17. Nxg6 {[%clk 0:01:43]}  Nxg6 {[%clk 0:01:28]} 18. Bxb8 {[%clk 0:01:43]}  d3 {[%clk 0:01:25]} 19. Bxa7 {[%clk 0:01:35]}  Bxb2 {[%clk 0:01:21]} 20. Rab1 {[%clk 0:01:30]}  Bc3 {[%clk 0:01:19]} 21. Rfd1 {[%clk 0:01:27]}  Be6 {[%clk 0:01:13]} 22. Rxd3 {[%clk 0:01:21]}  Bxa2 {[%clk 0:01:12]} 23. Rxb7 {[%clk 0:01:17]}  Bf6 {[%clk 0:01:06]} 24. f4 {[%clk 0:01:07]}  Ra8 {[%clk 0:01:04]} 25. e5 {[%clk 0:01:02]}  Be7 {[%clk 0:00:57]} 26. Rxe7 {[%clk 0:00:56]} 1-0


[Site "https://www.chess.com"]

[Event "Titled Tuesday Blitz May 16 Early 2023"]
[White "Maung, Maung Kyaw Zaw Hein"]
[Black "Arat, Ufuk Sezen"]
[WhiteFideId "13001698"]
[BlackFideId "6309089"]
[WhiteElo "2019"]
[BlackElo "2289"]
[Result "0-1"]
[Round "07"]
[TimeControl "180+2"]
[Date "2023.05.16"]
[WhiteClock "0:01:39"]
[BlackClock "0:02:05"]

1. Nf3 {[%clk 0:03:00]}  Nf6 {[%clk 0:02:58]} 2. c4 {[%clk 0:03:00]}  d5 {[%clk 0:02:59]} 3. cxd5 {[%clk 0:03:00]}  g6 {[%clk 0:03:00]} 4. Nc3 {[%clk 0:02:59]}  Nxd5 {[%clk 0:02:59]} 5. e4 {[%clk 0:02:59]}  Nxc3 {[%clk 0:02:59]} 6. bxc3 {[%clk 0:03:00]}  Bg7 {[%clk 0:02:59]} 7. d4 {[%clk 0:03:01]}  c5 {[%clk 0:02:59]} 8. Bc4 {[%clk 0:02:58]}  O-O {[%clk 0:02:57]} 9. O-O {[%clk 0:02:57]}  Nc6 {[%clk 0:02:58]} 10. Be3 {[%clk 0:02:56]}  Bg4 {[%clk 0:02:56]} 11. e5 {[%clk 0:02:56]}  Rc8 {[%clk 0:02:34]} 12. e6 {[%clk 0:02:48]}  f5 {[%clk 0:02:27]} 13. d5 {[%clk 0:02:41]}  Bxf3 {[%clk 0:02:15]} 14. Qxf3 {[%clk 0:02:39]}  Ne5 {[%clk 0:02:15]} 15. Qe2 {[%clk 0:02:38]}  f4 {[%clk 0:02:16]} 16. Bd2 {[%clk 0:02:22]}  f3 {[%clk 0:02:14]} 17. gxf3 {[%clk 0:02:19]}  Nxf3+ {[%clk 0:02:11]} 18. Kh1 {[%clk 0:02:18]}  Qd6 {[%clk 0:02:09]} 19. Qxf3 {[%clk 0:01:50]}  Rxf3 {[%clk 0:02:07]} 20. Kg2 {[%clk 0:01:49]}  Rf4 {[%clk 0:02:05]} 21. Bxf4 {[%clk 0:01:46]}  Qxf4 {[%clk 0:02:05]} 22. Be2 {[%clk 0:01:46]}  Be5 {[%clk 0:02:05]} 23. Rh1 {[%clk 0:01:45]}  Rf8 {[%clk 0:02:04]} 24. Raf1 {[%clk 0:01:44]}  Qg5+ {[%clk 0:02:04]} 25. Kh3 {[%clk 0:01:39]}  Rf4 {[%clk 0:02:05]} 0-1


[Site "https://www.chess.com"]

[Event "Titled Tuesday Blitz May 16 Early 2023"]
[White "Ezat, Mohamed"]
[Black "Manon-og, Ramon Jr."]
[WhiteFideId "10600906"]
[BlackFideId "5200776"]
[WhiteElo "2386"]
[BlackElo "2313"]
[Result "0-1"]
[Round "07"]
[TimeControl "180+2"]
[Date "2023.05.16"]
[WhiteClock "0:00:00"]
[BlackClock "0:00:44"]

1. e4 {[%clk 0:03:00]}  c5 {[%clk 0:03:00]} 2. d4 {[%clk 0:03:00]}  d6 {[%clk 0:03:00]} 3. Nf3 {[%clk 0:02:58]}  cxd4 {[%clk 0:03:00]} 4. c3 {[%clk 0:02:58]}  dxc3 {[%clk 0:02:59]} 5. Nxc3 {[%clk 0:02:57]}  Nc6 {[%clk 0:02:59]} 6. Bc4 {[%clk 0:02:57]}  e6 {[%clk 0:02:59]} 7. O-O {[%clk 0:02:56]}  Be7 {[%clk 0:03:00]} 8. Qe2 {[%clk 0:02:56]}  Nf6 {[%clk 0:03:00]} 9. Rd1 {[%clk 0:02:56]}  Qa5 {[%clk 0:03:00]} 10. a3 {[%clk 0:02:54]}  O-O {[%clk 0:02:59]} 11. Bf4 {[%clk 0:02:49]}  Rd8 {[%clk 0:02:57]} 12. b4 {[%clk 0:02:48]}  Qh5 {[%clk 0:02:55]} 13. h3 {[%clk 0:02:47]}  h6 {[%clk 0:02:51]} 14. Rd2 {[%clk 0:02:45]}  b6 {[%clk 0:02:51]} 15. Rad1 {[%clk 0:02:44]}  Ne8 {[%clk 0:02:47]} 16. Kh2 {[%clk 0:02:25]}  Bb7 {[%clk 0:02:46]} 17. g4 {[%clk 0:02:14]}  Qg6 {[%clk 0:02:45]} 18. Bd3 {[%clk 0:02:05]}  e5 {[%clk 0:02:44]} 19. Bg3 {[%clk 0:02:04]}  Nc7 {[%clk 0:02:41]} 20. Nd5 {[%clk 0:02:03]}  Rd7 {[%clk 0:02:12]} 21. Rc1 {[%clk 0:01:13]}  Ne6 {[%clk 0:02:06]} 22. Bb5 {[%clk 0:01:00]}  Rc8 {[%clk 0:02:01]} 23. Rdc2 {[%clk 0:00:35]}  Ned8 {[%clk 0:01:40]} 24. Bxc6 {[%clk 0:00:26]}  Rxc6 {[%clk 0:01:36]} 25. Rxc6 {[%clk 0:00:24]}  Bxc6 {[%clk 0:01:37]} 26. Nxe7+ {[%clk 0:00:18]}  Rxe7 {[%clk 0:01:37]} 27. Nh4 {[%clk 0:00:16]}  Qxe4 {[%clk 0:01:37]} 28. Qxe4 {[%clk 0:00:10]}  Bxe4 {[%clk 0:01:37]} 29. Rc8 {[%clk 0:00:08]}  Re8 {[%clk 0:01:31]} 30. f3 {[%clk 0:00:08]}  Bd5 {[%clk 0:01:22]} 31. Nf5 {[%clk 0:00:08]}  Be6 {[%clk 0:01:21]} 32. Nxd6 {[%clk 0:00:08]}  Bxc8 {[%clk 0:01:21]} 33. Nxe8 {[%clk 0:00:08]}  f6 {[%clk 0:01:19]} 34. Nd6 {[%clk 0:00:08]}  Be6 {[%clk 0:01:18]} 35. Nb5 {[%clk 0:00:08]}  a6 {[%clk 0:01:14]} 36. Nc3 {[%clk 0:00:08]}  Nc6 {[%clk 0:01:13]} 37. f4 {[%clk 0:00:09]}  Bc4 {[%clk 0:01:07]} 38. fxe5 {[%clk 0:00:09]}  fxe5 {[%clk 0:01:08]} 39. Ne4 {[%clk 0:00:08]}  Bd3 {[%clk 0:01:07]} 40. Nd6 {[%clk 0:00:07]}  e4 {[%clk 0:01:07]} 41. Bf4 {[%clk 0:00:07]}  Nd4 {[%clk 0:01:06]} 42. Kg3 {[%clk 0:00:06]}  Ne2+ {[%clk 0:01:06]} 43. Kf2 {[%clk 0:00:06]}  Nxf4 {[%clk 0:01:06]} 44. Ke3 {[%clk 0:00:07]}  Nxh3 {[%clk 0:01:05]} 45. Nc8 {[%clk 0:00:06]}  g6 {[%clk 0:01:02]} 46. Nxb6 {[%clk 0:00:06]}  h5 {[%clk 0:01:03]} 47. gxh5 {[%clk 0:00:05]}  gxh5 {[%clk 0:01:03]} 48. Nd7 {[%clk 0:00:05]}  Ng5 {[%clk 0:00:59]} 49. Nf6+ {[%clk 0:00:03]}  Kf7 {[%clk 0:00:56]} 50. Nxh5 {[%clk 0:00:04]}  Ke6 {[%clk 0:00:56]} 51. Kd4 {[%clk 0:00:04]}  Kf5 {[%clk 0:00:55]} 52. Ng7+ {[%clk 0:00:03]}  Kf4 {[%clk 0:00:55]} 53. a4 {[%clk 0:00:02]}  Bf1 {[%clk 0:00:51]} 54. Nh5+ {[%clk 0:00:02]}  Kf3 {[%clk 0:00:51]} 55. Ng7 {[%clk 0:00:02]}  e3 {[%clk 0:00:50]} 56. Nf5 {[%clk 0:00:02]}  e2 {[%clk 0:00:48]} 57. Nh4+ {[%clk 0:00:02]}  Kf2 {[%clk 0:00:48]} 58. Nf5 {[%clk 0:00:01]}  e1=Q {[%clk 0:00:47]} 59. b5 {[%clk 0:00:02]}  Qb4+ {[%clk 0:00:46]} 60. Ke5 {[%clk 0:00:02]}  Qe4+ {[%clk 0:00:46]} 61. Kf6 {[%clk 0:00:00]}  Bd3 {[%clk 0:00:44]} 0-1


[Site "https://www.chess.com"]

[Event "Titled Tuesday Blitz May 16 Early 2023"]
[White "Rose, Felix"]
[Black "Petrovic, Aleksa"]
[WhiteFideId "5105722"]
[BlackFideId "967629"]
[WhiteElo "2039"]
[BlackElo "2309"]
[Result "1-0"]
[Round "07"]
[TimeControl "180+2"]
[Date "2023.05.16"]
[WhiteClock "0:00:37"]
[BlackClock "0:00:07"]

1. e4 {[%clk 0:02:59]}  e6 {[%clk 0:02:56]} 2. d4 {[%clk 0:02:59]}  d5 {[%clk 0:02:56]} 3. Nc3 {[%clk 0:02:59]}  h6 {[%clk 0:02:56]} 4. Nf3 {[%clk 0:02:57]}  Nf6 {[%clk 0:02:53]} 5. Bd3 {[%clk 0:02:53]}  Nc6 {[%clk 0:02:52]} 6. a3 {[%clk 0:02:50]}  Be7 {[%clk 0:02:43]} 7. O-O {[%clk 0:02:49]}  a6 {[%clk 0:02:43]} 8. Re1 {[%clk 0:02:48]}  O-O {[%clk 0:02:41]} 9. h3 {[%clk 0:02:48]}  b6 {[%clk 0:02:36]} 10. Bf4 {[%clk 0:02:45]}  Bb7 {[%clk 0:02:32]} 11. Bh2 {[%clk 0:02:24]}  Re8 {[%clk 0:02:28]} 12. e5 {[%clk 0:02:21]}  Nd7 {[%clk 0:02:25]} 13. Ne2 {[%clk 0:02:20]}  Na7 {[%clk 0:02:08]} 14. c3 {[%clk 0:02:19]}  c5 {[%clk 0:02:04]} 15. Rc1 {[%clk 0:02:17]}  Rc8 {[%clk 0:02:02]} 16. Bb1 {[%clk 0:02:14]}  cxd4 {[%clk 0:01:56]} 17. cxd4 {[%clk 0:02:14]}  Rxc1 {[%clk 0:01:55]} 18. Qxc1 {[%clk 0:02:12]}  Qc8 {[%clk 0:01:56]} 19. Qf4 {[%clk 0:02:09]}  Nf8 {[%clk 0:01:45]} 20. Qg4 {[%clk 0:02:07]}  Kh8 {[%clk 0:01:24]} 21. Bf4 {[%clk 0:02:03]}  Nc6 {[%clk 0:01:14]} 22. Ng3 {[%clk 0:01:53]}  Nh7 {[%clk 0:00:58]} 23. Qh5 {[%clk 0:01:17]}  f5 {[%clk 0:00:26]} 24. exf6 {[%clk 0:00:59]}  Bxf6 {[%clk 0:00:25]} 25. Bxh6 {[%clk 0:00:52]}  gxh6 {[%clk 0:00:22]} 26. Qxh6 {[%clk 0:00:53]}  Qd7 {[%clk 0:00:10]} 27. Bxh7 {[%clk 0:00:51]}  Qxh7 {[%clk 0:00:11]} 28. Qxf6+ {[%clk 0:00:52]}  Qg7 {[%clk 0:00:11]} 29. Rxe6 {[%clk 0:00:46]}  Qxf6 {[%clk 0:00:08]} 30. Rxf6 {[%clk 0:00:46]}  Kg7 {[%clk 0:00:08]} 31. Nh5+ {[%clk 0:00:45]}  Kh7 {[%clk 0:00:08]} 32. Rf7+ {[%clk 0:00:43]}  Kg6 {[%clk 0:00:08]} 33. Rxb7 {[%clk 0:00:42]}  Kxh5 {[%clk 0:00:08]} 34. Rxb6 {[%clk 0:00:42]}  Na5 {[%clk 0:00:07]} 35. Rxa6 {[%clk 0:00:40]}  Nc4 {[%clk 0:00:07]} 36. g4# {[%clk 0:00:37]} 1-0


[Site "https://www.chess.com"]